bitfinex/quotes_BTCUSD_20220101
["timestamp","ask_amount","ask_price","bid_price","bid_amount"]
[1641056092940,1.40571439,47330.0,47329.0,0.005]
[1641056093138,0.84,47329.0,47327.0,0.05393]
[1641056093338,1.09665694,47328.0,47327.0,0.05393]
[1641056093540,1.24665694,47328.0,47327.0,0.05393]
[1641056093738,1.61593337,47328.0,47327.0,0.04893]
[1641056094138,2.43578317,47328.0,47327.0,0.04893]
[1641056094589,2.4542474,47328.0,47327.0,0.04893]
[1641056094989,2.50837396,47328.0,47327.0,0.04893]
[1641056095494,1.8897086,47328.0,47327.0,0.04893]
[1641056095691,1.8904917,47328.0,47327.0,0.04893]
[1641056096090,0.68930726,47328.0,47327.0,0.04893]
[1641056096293,1.4589164,47328.0,47327.0,0.04893]
[1641056096793,1.46024398,47328.0,47327.0,0.04893]
[1641056096995,1.09096755,47328.0,47327.0,0.04893]
[1641056097194,0.27135841,47328.0,47327.0,0.04893]
[1641056097397,0.32135841,47328.0,47327.0,0.04893]
[1641056097595,1.11084263,47328.0,47327.0,0.04893]
[1641056097795,1.09026772,47328.0,47327.0,0.04893]
[1641056098639,0.30402038,47324.0,47322.0,0.00971612]
[1641056098839,0.80180738,47324.0,47322.0,0.00971612]
[1641056099041,1.00010388,47322.0,47321.0,0.00122]
[1641056099242,1.00010388,47322.0,47319.0,0.00033]
[1641056099245,1.027787,47321.0,47319.0,0.00033]
[1641056099444,1.12519229,47320.0,47319.0,0.00022]
[1641056099642,0.027787,47316.0,47313.0,0.00033]
[1641056099847,1.0,47313.0,47305.0,0.22131147]
[1641056100048,0.10574126,47310.0,47302.0,0.00044]
[1641056100244,0.027787,47309.0,47306.0,0.00031039]
[1641056100447,1.0,47307.0,47301.0,0.00222]
[1641056100646,1.0002,47300.0,47292.0,0.00319]
[1641056100854,0.06886994,47295.0,47282.0,0.39591]
[1641056101042,0.10577103,47289.0,47282.0,0.37591]
[1641056101245,0.10577006,47290.0,47278.0,0.00022]
[1641056101542,0.00128517,47284.0,47283.0,0.0001201]
[1641056101984,0.00128517,47284.0,47273.0,0.33082862]
[1641056102185,0.052888,47278.0,47273.0,0.33082862]
[1641056102381,0.00128517,47284.0,47274.0,0.340403]
[1641056102782,0.00117517,47284.0,47274.0,0.340403]
[1641056103185,0.00106517,47284.0,47274.0,0.340403]
[1641056103584,0.00106517,47284.0,47283.0,0.00011]
[1641056103786,0.052883,47286.0,47283.0,0.00011]
[1641056104187,0.01911427,47287.0,47283.0,0.00011]
[1641056104384,0.01899476,47291.0,47283.0,0.00011]
[1641056104791,0.105759,47289.0,47285.0,0.33374867]
[1641056104987,0.01899476,47291.0,47287.0,1.118]
[1641056105188,0.01901126,47292.0,47290.0,0.340403]
[1641056105389,0.01901126,47292.0,47291.0,0.39456364]
[1641056105640,0.01901126,47292.0,47291.0,0.00027387]
[1641056105844,0.02063841,47296.0,47291.0,0.00027387]
[1641056106144,0.02063841,47296.0,47287.0,0.0003469]
[1641056106543,0.027787,47295.0,47287.0,0.0003469]
[1641056106945,0.23571667,47290.0,47287.0,0.0003469]
[1641056107142,0.027787,47289.0,47287.0,0.0003469]
[1641056107344,0.36101551,47289.0,47287.0,0.0003469]
[1641056107541,0.51390378,47289.0,47287.0,0.0003469]
[1641056108546,0.82502742,47288.0,47287.0,0.2103469]
[1641056108747,0.18858742,47288.0,47287.0,0.2103469]
[1641056108944,0.28858742,47288.0,47287.0,0.2115321]
[1641056109987,0.18858742,47288.0,47287.0,0.2115321]
[1641056110387,0.16080042,47288.0,47287.0,0.2115321]
[1641056111589,0.105773,47288.0,47287.0,0.2115321]
[1641056111791,0.07466804,47289.0,47287.0,0.2115321]
[1641056111993,0.02100329,47290.0,47287.0,0.2115321]
[1641056112191,0.02100329,47290.0,47288.0,0.34073164]
[1641056112192,0.01600329,47290.0,47288.0,0.34073164]
[1641056112590,0.01600329,47290.0,47289.0,0.00031038]
[1641056112791,0.01600329,47290.0,47289.0,0.34071338]
[1641056112991,0.052876,47292.0,47289.0,0.34071338]
[1641056113220,0.052876,47292.0,47289.0,0.00031038]
[1641056113421,0.052876,47292.0,47290.0,0.34069512]
[1641056113725,0.02859168,47291.0,47290.0,0.340403]
[1641056114022,0.052865,47298.0,47290.0,0.48309512]
[1641056114223,0.02126515,47301.0,47294.0,0.1]
[1641056114422,0.02126515,47301.0,47295.0,0.382803]
[1641056114624,0.02126515,47301.0,47299.0,0.30378448]
[1641056114823,0.02126515,47301.0,47300.0,0.340403]
[1641056115025,0.052861,47302.0,47300.0,0.00010955]
[1641056115326,0.052861,47302.0,47299.0,0.0001278]
[1641056118095,0.052861,47302.0,47299.0,0.2101278]
[1641056118295,0.052861,47302.0,47299.0,0.21]
[1641056118495,0.052861,47302.0,47300.0,0.00010955]
[1641056119593,0.052861,47302.0,47300.0,0.00129443]
[1641056119996,0.01800326,47308.0,47301.0,1.00009129]
[1641056120195,0.01800326,47308.0,47305.0,0.3509812]
[1641056120643,0.00123815,47314.0,47305.0,0.3509812]
[1641056120843,0.00123815,47314.0,47308.0,0.30298172]
[1641056121044,0.00012781,47313.0,47308.0,0.30298172]
[1641056121243,0.052852,47310.0,47308.0,0.30298172]
[1641056121446,0.052852,47310.0,47309.0,0.340403]
[1641056121843,0.05292503,47310.0,47309.0,0.340403]
[1641056122043,0.05292503,47310.0,47309.0,0.64850255]
[1641056122446,0.05292503,47310.0,47309.0,0.6420144]
[1641056122745,0.05292503,47310.0,47309.0,0.340403]
[1641056123949,7.303e-05,47310.0,47309.0,0.64387115]
[1641056124145,7.303e-05,47310.0,47309.0,0.340403]
[1641056124592,7.303e-05,47310.0,47309.0,0.64095645]
[1641056124991,7.303e-05,47310.0,47309.0,0.340403]
[1641056126193,7.303e-05,47310.0,47308.0,0.00118466]
[1641056126391,0.05292803,47310.0,47308.0,0.00118466]
[1641056129038,0.027787,47309.0,47308.0,0.00118466]
[1641056129243,0.027787,47309.0,47308.0,0.21118466]
[1641056132496,1.40821319,47309.0,47308.0,0.21118466]
[1641056132695,1.6674003,47309.0,47308.0,0.21118466]
[1641056132995,1.35584405,47309.0,47308.0,0.21118466]
[1641056133296,1.05409627,47303.0,47302.0,7.303e-05]
[1641056133496,1.12428327,47303.0,47302.0,7.303e-05]
[1641056133697,0.12428327,47303.0,47299.0,0.0001278]
[1641056133893,0.027787,47302.0,47299.0,0.0001278]
[1641056134498,0.052873,47301.0,47299.0,0.0001278]
[1641056134695,0.767787,47300.0,47295.0,0.00020083]
[1641056135196,0.01966753,47304.0,47298.0,0.1]
[1641056135397,0.01966753,47304.0,47299.0,0.32129396]
[1641056135626,0.01966753,47304.0,47299.0,0.0001278]
[1641056135828,0.07252553,47304.0,47300.0,0.00010955]
[1641056136029,0.07252553,47304.0,47302.0,0.29323327]
[1641056136229,0.052858,47304.0,47302.0,0.66164006]
[1641056136630,0.02186426,47309.0,47303.0,0.340403]
[1641056136828,0.02186426,47309.0,47302.0,0.66164006]
[1641056137032,0.02186426,47309.0,47302.0,0.65664006]
[1641056137229,7.303e-05,47310.0,47302.0,0.65664006]
[1641056137429,0.052857,47306.0,47302.0,0.65664006]
[1641056137831,7.303e-05,47310.0,47302.0,0.65664006]
[1641056138832,7.303e-05,47310.0,47303.0,0.29887958]
[1641056139488,0.052854,47309.0,47302.0,0.91949406]
[1641056139691,7.303e-05,47310.0,47303.0,0.340403]
[1641056139891,7.303e-05,47310.0,47302.0,0.91949406]
[1641056140591,0.052854,47309.0,47304.0,0.052853]
[1641056140892,7.303e-05,47310.0,47305.0,0.340403]
[1641056141792,0.052853,47309.0,47305.0,0.340403]
[1641056141990,0.052853,47309.0,47305.0,0.393255]
[1641056142193,0.052853,47309.0,47305.0,0.340403]
[1641056145837,7.303e-05,47310.0,47305.0,0.340403]
[1641056146883,0.05292503,47310.0,47305.0,0.340403]
[1641056147085,0.05292503,47310.0,47305.0,0.393255]
[1641056147283,7.303e-05,47310.0,47305.0,0.393255]
[1641056148285,0.05292303,47310.0,47305.0,0.340403]
[1641056148687,0.05292303,47310.0,47302.0,1.16117434]
[1641056148884,0.05292303,47310.0,47303.0,0.340403]
[1641056149087,0.05292303,47310.0,47302.0,0.90904006]
[1641056149584,0.05292303,47310.0,47303.0,0.340403]
[1641056150389,0.05292303,47310.0,47302.0,0.90904006]
[1641056150664,0.05292303,47310.0,47303.0,0.340403]
[1641056150861,0.05292303,47310.0,47305.0,0.05285492]
[1641056151862,0.05285,47310.0,47305.0,0.05285492]
[1641056152863,0.05285,47310.0,47307.0,0.05285315]
[1641056154787,0.03785,47310.0,47307.0,0.05285315]
[1641056154984,0.03785,47310.0,47308.0,0.340403]
[1641056155188,0.03785,47310.0,47308.0,0.39325241]
[1641056155787,0.03785,47310.0,47308.0,0.44325241]
[1641056157793,0.03785,47310.0,47308.0,0.390403]
[1641056158445,0.03785,47310.0,47308.0,0.340403]
[1641056158947,0.03785,47310.0,47305.0,0.0424]
[1641056159546,0.03785,47310.0,47306.0,0.340403]
[1641056161747,0.03785,47310.0,47307.0,0.05285342]
[1641056161979,0.03785,47310.0,47308.0,0.340403]
[1641056162580,0.03785,47310.0,47305.0,0.0424]
[1641056162780,0.03785,47310.0,47307.0,0.05285131]
[1641056163083,0.03785,47310.0,47308.0,0.340403]
[1641056163580,0.03785,47310.0,47306.0,0.30082868]
[1641056163780,0.03785,47310.0,47307.0,0.340403]
[1641056163978,0.01785,47310.0,47307.0,0.340403]
[1641056164179,0.01785,47310.0,47307.0,0.393254]
[1641056164382,0.01785,47310.0,47308.0,0.05285121]
[1641056164580,0.01785,47310.0,47309.0,0.6380003]
[1641056166240,0.105699,47314.0,47310.0,0.05284887]
[1641056166440,0.105699,47314.0,47310.0,0.44302939]
[1641056166640,0.00012781,47313.0,47310.0,0.44302939]
[1641056166841,0.00012781,47313.0,47310.0,0.44276661]
[1641056167039,0.105699,47314.0,47310.0,0.44276661]
[1641056167040,0.00010955,47312.0,47310.0,0.72282286]
[1641056167243,0.052852,47311.0,47310.0,0.72282286]
[1641056167443,0.05294329,47311.0,47310.0,0.72282286]
[1641056168544,0.05294329,47311.0,47308.0,0.05285337]
[1641056168745,0.05294329,47311.0,47306.0,0.05285479]
[1641056168943,0.052855,47309.0,47306.0,0.05285479]
[1641056169385,0.052855,47309.0,47307.0,0.30403247]
[1641056170978,0.052855,47309.0,47307.0,0.30521716]
[1641056171879,0.052855,47309.0,47307.0,0.35807023]
[1641056176234,0.06886994,47308.0,47307.0,0.35807023]
[1641056178282,0.06886994,47308.0,47307.0,0.05403776]
[1641056178486,0.09665694,47308.0,47307.0,0.00118469]
[1641056179085,0.0978976,47308.0,47307.0,0.00118469]
[1641056179282,0.0978976,47308.0,47303.0,0.005]
[1641056179482,0.91886994,47304.0,47303.0,0.005]
[1641056179683,0.09665694,47304.0,47303.0,0.005]
[1641056179882,0.42665694,47304.0,47303.0,0.005]
[1641056180082,0.09665694,47304.0,47303.0,0.005]
[1641056180483,0.14952594,47304.0,47303.0,0.005]
[1641056182935,0.98952594,47304.0,47303.0,0.005]
[1641056183136,1.13952594,47304.0,47302.0,0.21]
[1641056183336,1.08665694,47303.0,47302.0,0.21]
[1641056183740,1.08665694,47303.0,47302.0,0.21007303]
[1641056184403,1.66870945,47303.0,47302.0,0.21007303]
[1641056184593,0.67870945,47303.0,47302.0,0.21007303]
[1641056184793,1.04335704,47303.0,47302.0,0.21007303]
[1641056184992,1.06420537,47303.0,47302.0,0.21007303]
[1641056185392,1.56420537,47303.0,47302.0,0.21007303]
[1641056185992,1.58501674,47303.0,47302.0,0.21007303]
[1641056186193,0.9821159,47303.0,47302.0,0.21007303]
[1641056186395,1.00280308,47303.0,47302.0,0.21007303]
[1641056186593,0.99,47302.0,47294.0,0.01605581]
[1641056186793,0.10575907,47296.0,47294.0,0.01605581]
[1641056186993,1.44907071,47295.0,47294.0,0.01605581]
[1641056187195,1.44907071,47295.0,47294.0,0.01266981]
[1641056187393,1.54907071,47295.0,47294.0,0.01281587]
[1641056187595,1.59147071,47295.0,47294.0,0.01281587]
[1641056187795,0.87147071,47295.0,47294.0,0.01281587]
[1641056187996,0.77147071,47295.0,47294.0,0.01281587]
[1641056188231,0.87147071,47295.0,47294.0,0.00353206]
[1641056188433,0.89028181,47295.0,47294.0,0.00353206]
[1641056188634,0.15786804,47295.0,47294.0,0.00353206]
[1641056189039,0.51,47294.0,47282.0,0.29653213]
[1641056189234,0.052881,47289.0,47283.0,0.340403]
[1641056189434,0.052881,47289.0,47283.0,0.34060384]
[1641056189635,0.001525,47292.0,47285.0,0.31272617]
[1641056189836,0.05288097,47295.0,47286.0,0.340403]
[1641056190137,0.105769,47294.0,47287.0,0.00012781]
[1641056190335,0.105762,47290.0,47287.0,0.00012781]
[1641056190637,0.105762,47290.0,47286.0,0.00014607]
[1641056192099,0.105762,47290.0,47282.0,0.0002191]
[1641056192298,0.105762,47290.0,47287.0,0.00012781]
[1641056192499,0.105762,47290.0,47282.0,0.0002191]
[1641056192699,0.158647,47290.0,47282.0,0.0002191]
[1641056192900,0.105762,47290.0,47282.0,0.0002191]
[1641056193303,0.105762,47290.0,47283.0,0.340403]
[1641056193702,0.105762,47290.0,47284.0,0.00018258]
[1641056195104,0.158647,47290.0,47284.0,0.00018258]
[1641056195504,0.052884,47287.0,47282.0,0.0002191]
[1641056195740,0.052884,47287.0,47283.0,0.340403]
[1641056196140,0.052884,47287.0,47284.0,0.00018258]
[1641056196540,0.052884,47287.0,47285.0,0.340403]
[1641056196942,0.052884,47287.0,47286.0,0.00014607]
[1641056197540,0.052884,47287.0,47282.0,0.0002191]
[1641056199781,0.052884,47287.0,47283.0,0.340403]
[1641056200184,0.052884,47287.0,47284.0,0.00018258]
[1641056200384,0.052884,47287.0,47284.0,0.29911291]
[1641056200588,0.052884,47287.0,47285.0,0.340403]
[1641056200784,0.052884,47287.0,47285.0,0.34056732]
[1641056200984,0.052884,47287.0,47286.0,0.00014607]
[1641056201383,0.052884,47287.0,47283.0,0.29765294]
[1641056201584,0.052884,47287.0,47284.0,0.34058558]
[1641056201986,0.052884,47287.0,47285.0,0.00016432]
[1641056202586,0.052884,47287.0,47284.0,0.00018258]
[1641056203439,0.052884,47287.0,47282.0,0.0002191]
[1641056203941,0.052884,47287.0,47282.0,0.05310109]
[1641056204139,0.052884,47287.0,47283.0,0.340403]
[1641056204442,0.052884,47287.0,47284.0,0.00018258]
[1641056204642,0.052884,47287.0,47285.0,0.340403]
[1641056205043,0.052884,47287.0,47286.0,0.00014607]
[1641056205643,0.052884,47287.0,47284.0,0.00018258]
[1641056205842,0.052884,47287.0,47285.0,0.340403]
[1641056206244,0.052884,47287.0,47286.0,0.00014607]
[1641056208702,0.052884,47287.0,47282.0,0.0002191]
[1641056210400,0.052884,47287.0,47281.0,0.3140372]
[1641056210636,7.303e-05,47286.0,47281.0,0.3140372]
[1641056210838,0.052886,47284.0,47281.0,0.3140372]
[1641056211038,0.052886,47284.0,47282.0,0.340403]
[1641056212542,0.052886,47284.0,47283.0,0.29619015]
[1641056212741,0.052886,47284.0,47283.0,0.63659315]
[1641056214391,0.052886,47284.0,47283.0,0.340403]
[1641056216395,0.052886,47284.0,47280.0,0.31077673]
[1641056216396,0.05411511,47284.0,47280.0,0.00044]
[1641056216597,0.105786,47283.0,47280.0,0.00044]
[1641056217195,0.027787,47282.0,47280.0,0.00044]
[1641056217698,0.052895,47283.0,47280.0,0.00044]
[1641056217894,0.052895,47282.0,47280.0,0.00044]
[1641056218737,0.052895,47282.0,47280.0,0.30346914]
[1641056218937,0.052895,47282.0,47281.0,0.340403]
[1641056219638,0.052895,47282.0,47281.0,0.63131478]
[1641056219838,0.052895,47282.0,47281.0,0.340403]
[1641056220242,0.052895,47282.0,47280.0,0.30346914]
[1641056220540,0.052895,47282.0,47281.0,0.340403]
[1641056220741,0.052895,47282.0,47280.0,0.30346914]
[1641056221741,0.052895,47282.0,47281.0,0.63808219]
[1641056222187,0.052895,47282.0,47281.0,0.340403]
[1641056222384,0.052895,47282.0,47280.0,0.30346914]
[1641056222789,0.052895,47282.0,47281.0,0.340403]
[1641056224385,0.052895,47282.0,47280.0,0.35346914]
[1641056225729,0.052895,47282.0,47281.0,0.29301475]
[1641056225930,0.052895,47282.0,47280.0,0.35346914]
[1641056226731,0.052895,47282.0,47281.0,0.29317366]
[1641056227935,0.052895,47282.0,47280.0,0.30346914]
[1641056228332,0.052895,47282.0,47281.0,0.340403]
[1641056229032,0.052895,47282.0,47280.0,0.00044]
[1641056229231,0.052895,47282.0,47281.0,0.340403]
[1641056230097,0.052895,47282.0,47280.0,0.00044]
[1641056231600,0.052895,47282.0,47281.0,0.340403]
[1641056232002,0.05238995,47282.0,47281.0,0.340403]
[1641056237193,0.05238995,47282.0,47281.0,0.34158835]
[1641056238298,0.05295003,47286.0,47282.0,0.05238995]
[1641056238493,0.02181872,47291.0,47285.0,1.330403]
[1641056238693,0.02181872,47291.0,47289.0,0.340403]
[1641056238993,0.00929146,47297.0,47291.0,0.84]
[1641056239194,0.00929146,47297.0,47295.0,0.28852425]
[1641056239392,0.00929146,47297.0,47296.0,0.340403]
[1641056239591,0.00929146,47297.0,47295.0,0.0528598]
[1641056239791,0.00941926,47297.0,47295.0,0.0528598]
[1641056240193,0.0001278,47297.0,47295.0,0.0528598]
[1641056240649,0.0001278,47297.0,47296.0,0.29594472]
[1641056240954,0.0001278,47297.0,47294.0,0.01877983]
[1641056241151,0.0001278,47297.0,47292.0,0.01868918]
[1641056241350,0.00010954,47296.0,47292.0,0.01868918]
[1641056241750,9.129e-05,47295.0,47292.0,0.01868918]
[1641056241953,0.052873,47294.0,47293.0,0.340403]
[1641056242151,0.05294603,47294.0,47293.0,0.340403]
[1641056242551,0.05294603,47294.0,47293.0,0.34158804]
[1641056242951,0.05294603,47294.0,47293.0,0.36063035]
[1641056243751,7.303e-05,47294.0,47293.0,0.65470169]
[1641056244400,7.303e-05,47294.0,47293.0,0.94876095]
[1641056244595,7.303e-05,47294.0,47293.0,0.96941279]
[1641056244794,7.303e-05,47294.0,47293.0,0.95037048]
[1641056244996,7.303e-05,47294.0,47293.0,0.97003156]
[1641056245194,7.303e-05,47294.0,47293.0,0.94937972]
[1641056245794,7.303e-05,47294.0,47293.0,0.96813448]
[1641056246198,7.303e-05,47294.0,47293.0,0.9484734]
[1641056246395,7.303e-05,47294.0,47293.0,0.65440206]
[1641056246597,7.303e-05,47294.0,47293.0,0.70440206]
[1641056246798,7.303e-05,47294.0,47293.0,1.04938432]
[1641056246998,7.303e-05,47294.0,47293.0,2.16703276]
[1641056247399,7.303e-05,47294.0,47293.0,2.31703276]
[1641056247700,7.303e-05,47294.0,47293.0,1.9720505]
[1641056247999,7.303e-05,47294.0,47293.0,1.99101216]
[1641056248235,7.303e-05,47294.0,47293.0,1.97260896]
[1641056249035,7.303e-05,47294.0,47293.0,1.99115718]
[1641056249839,7.303e-05,47294.0,47293.0,1.9536473]
[1641056250038,7.303e-05,47294.0,47293.0,1.97297614]
[1641056250841,7.303e-05,47294.0,47293.0,1.99467792]
[1641056251041,7.303e-05,47294.0,47293.0,1.97534908]
[1641056252588,7.303e-05,47294.0,47293.0,1.9948767]
[1641056252788,7.303e-05,47294.0,47293.0,1.97317492]
[1641056253089,7.303e-05,47294.0,47293.0,2.01436621]
[1641056254093,7.303e-05,47294.0,47293.0,2.03248064]
[1641056254289,7.303e-05,47294.0,47293.0,2.01416173]
[1641056254890,7.303e-05,47294.0,47293.0,2.03307826]
[1641056255091,7.303e-05,47294.0,47293.0,2.01496383]
[1641056255744,7.303e-05,47294.0,47293.0,0.89696383]
[1641056255946,7.303e-05,47294.0,47293.0,1.2243285]
[1641056256145,7.303e-05,47294.0,47293.0,1.1243285]
[1641056256542,7.303e-05,47294.0,47293.0,1.14551589]
[1641056256944,7.303e-05,47294.0,47293.0,1.14565469]
[1641056257343,7.303e-05,47294.0,47293.0,1.10555077]
[1641056257642,7.303e-05,47294.0,47293.0,1.12652622]
[1641056258042,7.303e-05,47294.0,47293.0,2.26435053]
[1641056258242,7.303e-05,47294.0,47293.0,2.22355077]
[1641056259043,7.303e-05,47294.0,47293.0,2.2416943]
[1641056260607,7.303e-05,47294.0,47293.0,2.26358666]
[1641056260808,7.303e-05,47294.0,47293.0,2.24544313]
[1641056261009,7.303e-05,47294.0,47293.0,2.26479978]
[1641056261210,7.303e-05,47294.0,47293.0,2.24290742]
[1641056262010,7.303e-05,47294.0,47293.0,2.26277087]
[1641056262209,7.303e-05,47294.0,47293.0,2.24341422]
[1641056262411,7.303e-05,47294.0,47293.0,2.19341422]
[1641056263014,7.303e-05,47294.0,47293.0,2.26475467]
[1641056263251,7.303e-05,47294.0,47293.0,2.24489122]
[1641056264651,7.303e-05,47294.0,47293.0,2.26442788]
[1641056264855,7.303e-05,47294.0,47293.0,2.24308743]
[1641056265151,7.303e-05,47294.0,47293.0,2.24468226]
[1641056265960,7.303e-05,47294.0,47293.0,2.2632565]
[1641056266755,7.303e-05,47294.0,47293.0,2.22355077]
[1641056267006,7.303e-05,47294.0,47293.0,2.24181795]
[1641056268101,7.303e-05,47294.0,47293.0,2.2636521]
[1641056268301,7.303e-05,47294.0,47293.0,2.24538492]
[1641056268602,7.303e-05,47294.0,47293.0,2.34538492]
[1641056269002,7.303e-05,47294.0,47293.0,2.36620092]
[1641056269303,7.303e-05,47294.0,47293.0,2.34436677]
[1641056270103,7.303e-05,47294.0,47293.0,2.36469793]
[1641056270302,7.303e-05,47294.0,47293.0,2.34388193]
[1641056271153,7.303e-05,47294.0,47293.0,2.36382297]
[1641056271356,7.303e-05,47294.0,47293.0,2.34349181]
[1641056272156,0.01,47300.0,47296.0,0.05285722]
[1641056272360,0.01,47300.0,47298.0,0.052858]
[1641056272559,0.01,47300.0,47299.0,0.340403]
[1641056272958,0.01018257,47300.0,47299.0,0.390403]
[1641056273162,0.01018257,47300.0,47299.0,0.77528524]
[1641056273559,0.01018257,47300.0,47299.0,1.06749842]
[1641056273962,0.04179388,47300.0,47299.0,1.06749842]
[1641056274162,0.04179388,47300.0,47299.0,1.0888099]
[1641056275193,0.01018257,47300.0,47299.0,0.8158884]
[1641056275394,0.01018257,47300.0,47299.0,0.79457692]
[1641056276096,0.01018257,47300.0,47299.0,0.81577695]
[1641056276299,0.01018257,47300.0,47299.0,0.79648527]
[1641056277196,0.01018257,47300.0,47299.0,0.81795366]
[1641056277397,0.01018257,47300.0,47299.0,0.79675363]
[1641056277796,0.01018257,47300.0,47299.0,1.08662677]
[1641056278237,0.01018257,47300.0,47299.0,1.10744453]
[1641056278437,0.01018257,47300.0,47299.0,1.08611494]
[1641056278838,0.01018257,47300.0,47299.0,0.41135956]
[1641056279038,0.07543281,47300.0,47299.0,0.41135956]
[1641056279242,0.07543281,47300.0,47299.0,0.04053519]
[1641056279442,0.17208975,47300.0,47299.0,0.01971743]
[1641056280340,0.17335748,47300.0,47299.0,0.0001388]
[1641056280539,0.18508352,47299.0,47293.0,0.00118504]
[1641056280740,0.06886994,47294.0,47293.0,0.00118504]
[1641056280939,0.09665694,47294.0,47293.0,0.00118504]
[1641056281140,0.02786003,47294.0,47293.0,0.00118504]
[1641056281544,0.02786003,47294.0,47285.0,0.00929115]
[1641056281741,1.01905822,47293.0,47285.0,0.00929115]
[1641056282208,1.40869637,47293.0,47282.0,0.05238995]
[1641056282409,0.00125017,47283.0,47282.0,0.05238995]
[1641056282808,0.02903717,47283.0,47282.0,0.04738995]
[1641056283508,0.08192517,47283.0,47282.0,0.04738995]
[1641056284507,0.05413817,47283.0,47282.0,0.04738995]
[1641056284708,0.027787,47283.0,47282.0,0.04738995]
[1641056284909,0.0012232,47285.0,47282.0,0.04738995]
[1641056285312,0.105775,47284.0,47283.0,0.00012781]
[1641056285942,0.052886,47285.0,47283.0,0.00012781]
[1641056286241,0.052886,47285.0,47284.0,0.340403]
[1641056286641,0.052886,47285.0,47284.0,0.34051255]
[1641056287242,0.052886,47285.0,47284.0,0.39051255]
[1641056287644,0.052877,47287.0,47284.0,0.34051255]
[1641056288046,0.052877,47287.0,47285.0,9.129e-05]
[1641056288245,0.052877,47287.0,47286.0,0.340403]
[1641056288446,0.052877,47287.0,47285.0,0.00127653]
[1641056288645,0.052877,47287.0,47286.0,7.304e-05]
[1641056292399,0.052877,47287.0,47286.0,0.21007304]
[1641056294250,0.052877,47287.0,47286.0,0.55357314]
[1641056294549,7.303e-05,47294.0,47291.0,0.44646253]
[1641056294949,7.303e-05,47294.0,47292.0,0.05286816]
[1641056295149,7.303e-05,47294.0,47293.0,0.340403]
[1641056295348,7.303e-05,47294.0,47293.0,0.64266648]
[1641056296548,7.303e-05,47294.0,47293.0,0.66242651]
[1641056297297,7.303e-05,47294.0,47293.0,0.64266648]
[1641056297497,7.303e-05,47294.0,47293.0,0.66454551]
[1641056298402,7.303e-05,47294.0,47293.0,0.6835599]
[1641056299399,7.303e-05,47294.0,47293.0,0.70302304]
[1641056299600,7.303e-05,47294.0,47293.0,0.66212962]
[1641056300401,7.303e-05,47294.0,47293.0,0.68347612]
[1641056300648,7.303e-05,47294.0,47293.0,0.66401298]
[1641056301548,7.303e-05,47294.0,47293.0,0.66070219]
[1641056301750,0.32700231,47294.0,47293.0,0.01803571]
[1641056301954,0.35604608,47294.0,47293.0,0.01803571]
[1641056302351,0.35604608,47294.0,47293.0,0.03987658]
[1641056302549,0.35604608,47294.0,47293.0,0.02184087]
[1641056304800,0.052881,47290.0,47286.0,0.21007304]
[1641056305603,0.38071501,47290.0,47286.0,0.21007304]
[1641056305802,0.052881,47290.0,47286.0,0.21007304]
[1641056308852,0.26666194,47289.0,47286.0,0.21007304]
[1641056309255,0.05410094,47288.0,47286.0,0.21007304]
[1641056310056,1.05886994,47287.0,47286.0,0.21007304]
[1641056310359,0.09665694,47287.0,47286.0,0.21007304]
[1641056310557,0.48665694,47287.0,47286.0,0.21007304]
[1641056311914,0.09665694,47287.0,47286.0,0.21007304]
[1641056314107,0.027787,47287.0,47286.0,0.21007304]
[1641056315512,0.052888,47288.0,47286.0,0.21007304]
[1641056317154,0.163444,47298.0,47287.0,0.382803]
[1641056317155,0.05287,47292.0,47287.0,0.382803]
[1641056317555,0.05287,47292.0,47289.0,0.05287]
[1641056317757,0.0001278,47297.0,47290.0,0.340403]
[1641056317955,0.0001278,47297.0,47296.0,0.24920902]
[1641056318155,0.052866,47298.0,47296.0,0.58961202]
[1641056318358,0.052866,47298.0,47297.0,0.340403]
[1641056318555,0.052866,47298.0,47296.0,0.24920902]
[1641056318958,0.0001278,47297.0,47296.0,0.24920902]
[1641056319157,0.0001278,47297.0,47296.0,0.58961202]
[1641056320596,0.0001278,47297.0,47296.0,0.6108428]
[1641056320994,0.0001278,47297.0,47296.0,0.36163378]
[1641056321598,0.0001278,47297.0,47296.0,0.38256636]
[1641056321795,0.0001278,47297.0,47296.0,0.36133558]
[1641056321998,0.0001278,47297.0,47296.0,0.02093258]
[1641056322596,0.0001278,47297.0,47296.0,0.03986831]
[1641056322794,0.0001278,47297.0,47296.0,0.22893573]
[1641056323744,0.0001278,47297.0,47296.0,0.21]
[1641056329706,0.0001278,47297.0,47296.0,0.205]
[1641056330407,0.0001278,47297.0,47296.0,0.2]
[1641056332554,0.33183772,47297.0,47296.0,0.2]
[1641056333355,0.35962472,47297.0,47296.0,0.2]
[1641056334506,0.35962472,47297.0,47296.0,0.20118497]
[1641056336108,0.0279148,47297.0,47296.0,0.20118497]
[1641056336310,0.0001278,47297.0,47296.0,0.20118497]
[1641056340755,0.0001278,47297.0,47296.0,0.54158797]
[1641056341755,0.0001278,47297.0,47296.0,0.56083842]
[1641056342799,0.0001278,47297.0,47296.0,0.58280008]
[1641056343001,0.0001278,47297.0,47296.0,0.56083842]
[1641056343201,0.0001278,47297.0,47296.0,0.54158797]
[1641056343802,0.0001278,47297.0,47296.0,0.56273641]
[1641056344022,0.0001278,47297.0,47296.0,0.55273641]
[1641056344802,0.0001278,47297.0,47296.0,0.57233285]
[1641056345002,0.0001278,47297.0,47296.0,0.55118441]
[1641056345848,0.0001278,47297.0,47296.0,0.5721641]
[1641056346049,0.0001278,47297.0,47296.0,0.55256766]
[1641056346449,0.0001278,47297.0,47296.0,0.55496766]
[1641056346850,0.0001278,47297.0,47296.0,0.57569542]
[1641056347049,0.0001278,47297.0,47296.0,0.55471573]
[1641056347852,0.0001278,47297.0,47296.0,0.57668795]
[1641056348050,0.0001278,47297.0,47296.0,0.55596019]
[1641056348753,0.0001278,47297.0,47296.0,0.57468956]
[1641056348951,0.052866,47298.0,47296.0,0.55271734]
[1641056349151,0.052866,47298.0,47296.0,0.21231434]
[1641056349995,0.052866,47298.0,47296.0,0.19358497]
[1641056359913,0.052866,47298.0,47296.0,0.19476994]
[1641056360958,0.102866,47298.0,47296.0,0.19476994]
[1641056363660,0.102866,47298.0,47296.0,0.24763594]
[1641056365101,0.102866,47298.0,47296.0,0.19476994]
[1641056370666,0.102866,47298.0,47296.0,0.24763594]
[1641056371369,0.097866,47298.0,47296.0,0.24763594]
[1641056372202,0.097866,47298.0,47296.0,0.19476994]
[1641056374504,0.47766054,47298.0,47296.0,0.19476994]
[1641056374704,0.027787,47297.0,47296.0,0.19476994]
[1641056375649,0.73426491,47297.0,47296.0,0.19476994]
[1641056376852,0.40758154,47297.0,47296.0,0.19476994]